Cogmind - Beta 12 X6 @@@ ROGUE MODE // 2023.01.28 @ 19:54:05 Player: Decinym Result: Destroyed by as-61170 with Assembled Blade Performance ------------- Evolutions (4) 2000 Regions Visited (14) 2800 Robots Destroyed (110) 550 Value Destroyed (5180) 5180 Prototype IDs (33) 660 Alien Tech Used (0) 0 Bonus (3610) 3610 TOTAL SCORE: 14800 Bonus ------- High Alert Combat Kills 910 Entered Garrisons 400 Met Imprinter 300 Destroyed Z-Imprinter 1000 Triggered Deep Caves Wall 500 Exposed GOLEM Chamber 500 Cogmind --------- Core Integrity 0/850 Matter 300/300 Energy 100/100 System Corruption 0% Temperature Cool (20) Movement Walking (120) Location -6/Deep Caves Parts ------- > --- POWER (2) -------- (None) > --- PROPULSION (4) --- Enhanced Flexi-carbon Leg Enhanced Flexi-carbon Leg > --- UTILITY (7) ------ Experimental Heat Sink High-capacity Storage Unit Advanced Targeting Computer Graphene Brace > --- WEAPON (2) ------- (None) > --- INVENTORY (20) --- Zionite Light DM Reactor Armored Wheel Experimental Heat Sink Experimental Heat Sink Encrypted Comm Array Quantum Capacitor Hacking Drone Bay Force Rifle Improved Heavy Laser Improved Heavy Laser EM Pulse Cannon Matter Neutralizer Heavy Mass Driver Great Maul CR-A16's Pointy Stick Peak State ------------ > --- POWER ------------ Cold Fusion Reactor Zionite Light DM Reactor > --- PROPULSION ------- Flexi-carbon Leg Enhanced Flexi-carbon Leg Enhanced Flexi-carbon Leg Biometal Leg > --- UTILITY ---------- Experimental Heat Sink High-capacity Storage Unit Zionite Biocell Zionite Biocell Advanced Targeting Computer Layered Medium Armor Plating Graphene Brace > --- WEAPON ----------- AWS/Gauss > --- INVENTORY -------- Zionite Light DM Reactor Armored Wheel Experimental Heat Sink Experimental Heat Sink Encrypted Comm Array Quantum Capacitor Hacking Drone Bay Force Rifle Improved Heavy Laser Improved Heavy Laser EM Pulse Cannon Matter Neutralizer Heavy Mass Driver Great Maul CR-A16's Pointy Stick [Rating: 101] Favorites ----------- Power Cold Fusion Reactor Engine Reinforced Deuterium Engine Reactor Cold Fusion Reactor Propulsion Armored Treads Treads Armored Treads Leg Aluminum Leg Wheel Armored Wheel Utility Improved Heat Sink Device Improved Heat Sink Storage High-capacity Storage Unit Processor Advanced Targeting Computer Hackware Hacking Suite Protection Improved Light Armor Plating Weapon Improved Heavy Laser Energy Gun Improved Heavy Laser Energy Cannon Advanced Beam Cannon Ballistic Gun Heavy Machine Gun Launcher Rocket Launcher Impact Weapon Great Maul Build | -11 -10 -10 -10 -9 -8 -7 -7 -7 -7 -6 -6 -6 -6 -6 ------- Run | Jun Mat Min Exi Min Mat Fac Gar Fac Gar Fac Low Low Zio Dee Slots Evolved 8 | . . . . . 4 2 . . . 2 . . . . Power 1 | . . . . . . . . . . 1 . . . . Propulsion 2 | . . . . . 1 1 . . . . . . . . Utility 5 | . . . . . 3 1 . . . 1 . . . . Weapon . | . . . . . . . . . . . . . . . Parts Attached 133 | . . 1 2 10 30 1 23 10 21 8 3 7 3 14 Power 10 | . . . . 1 2 . 1 1 1 3 . . . 1 Engine 5 | . . . . 1 2 . 1 1 . . . . . . Core . | . . . . . . . . . . . . . . . Reactor 5 | . . . . . . . . . 1 3 . . . 1 Propulsion 30 | . . 1 . 2 5 1 6 1 7 . 2 . . 5 Treads 18 | . . . . 2 5 1 6 1 2 . . . . 1 Leg 6 | . . 1 . . . . . . 1 . . . . 4 Wheel 6 | . . . . . . . . . 4 . 2 . . . Hover . | . . . . . . . . . . . . . . . Flight . | . . . . . . . . . . . . . . . Utility 47 | . . . 1 2 10 . 7 6 6 2 1 6 1 5 Device 26 | . . . . 1 3 . 3 3 5 2 1 6 . 2 Storage 5 | . . . 1 . 1 . . . 1 . . . . 2 Processor 2 | . . . . . . . 1 1 . . . . . . Hackware 1 | . . . . . . . . 1 . . . . . . Protection 13 | . . . . 1 6 . 3 1 . . . . 1 1 Artifact . | . . . . . . . . . . . . . . . Weapon 46 | . . . 1 5 13 . 9 2 7 3 . 1 2 3 Energy Gun 12 | . . . . . 1 . . 2 4 2 . 1 1 1 Energy Cannon 10 | . . . . . 6 . 1 . 1 1 . . . 1 Ballistic Gun 15 | . . . 1 4 3 . 5 . 1 . . . . 1 Ballistic Cannon . | . . . . . . . . . . . . . . . Launcher 8 | . . . . 1 3 . 3 . 1 . . . . . Special Weapon . | . . . . . . . . . . . . . . . Impact Weapon 1 | . . . . . . . . . . . . . 1 . Slashing Weapon . | . . . . . . . . . . . . . . . Piercing Weapon . | . . . . . . . . . . . . . . . Special Melee Weapon . | . . . . . . . . . . . . . . . Unidentified Prototypes 10 | . . . . . 1 . . 1 . 4 . . . 4 Corrupted Parts 6 | . . . . . . . . . 6 . . . . . System Corruption 48 | . . . . . . . . . 48 . . . . . Parts Lost 42 | . . . . 4 8 . 2 . 9 1 . . . 18 Power 6 | . . . . 1 . . . . 1 1 . . . 3 Propulsion 14 | . . . . 1 4 . . . 3 . . . . 6 Utility 14 | . . . . . 3 . 2 . 2 . . . . 7 Weapon 8 | . . . . 2 1 . . . 3 . . . . 2 Highest Loss Streak 8 | . . . . 4 4 . 1 . 8 1 . . . 8 To Critical Strikes . | . . . . . . . . . . . . . . . Average Slot Usage (%) 89 | . 85 85 85 63 91 78 94 100 90 83 86 86 100 95 Engine 4 | . 14 14 14 8 9 7 6 7 . . . . . . Reactor 6 | . . . . . . . . . 6 11 13 13 13 11 Treads 16 | . . . . 13 24 24 30 30 17 13 13 13 13 5 Leg 4 | . 28 28 28 14 . . . . 1 . . . . 13 Wheel 6 | . . . . . . . . . 10 13 13 13 13 5 Device 17 | . . . . . 13 15 18 19 21 20 20 20 28 17 Storage 8 | . 14 14 14 14 9 7 7 7 7 6 6 6 6 13 Processor 4 | . . . . . . . 2 9 8 6 6 6 6 6 Protection 4 | . . . . . 16 7 11 7 . . . . 3 5 Energy Gun 6 | . 14 14 14 . . . . 10 8 3 6 10 12 11 Energy Cannon 3 | . . . . . 11 15 3 . 5 6 6 2 . . Ballistic Gun 4 | . 14 14 14 12 5 . 10 5 . . . . . . Naked Turns . | . . . . . . . . . . . . . . . Heaviest Build 95 | 14 14 14 29 33 55 54 63 53 69 91 85 90 92 95 Greatest Support 104 | 20 20 20 20 40 60 80 80 82 82 24 24 30 24 104 Greatest Overweight (x) 3 | . . . 1 1 2 . . . 2 3 3 3 3 3 Average Overweight (x) 1 | . . . . . . . . . 1 3 3 2 3 1 Largest Inventory Capacity 20 | . 8 8 15 15 15 15 15 15 20 20 20 20 20 20 Average Capacity 17 | . 8 8 13 15 15 15 15 15 18 20 20 20 20 20 Most Carried 20 | . 5 8 12 15 15 15 15 15 20 20 20 20 20 20 Average Carried 16 | . 4 6 9 11 13 14 14 14 16 17 19 19 19 19 Final Capacity 20 | 8 8 8 15 15 15 15 15 15 20 20 20 20 20 20 Final Carried 20 | 6 4 8 12 14 15 14 15 15 20 20 20 20 20 17 Class Distribution -------------------- 61% | Scavenger-Mutant 20% | Mutant 17% | Scavenger-Skirmisher Dominant Class ---------------- Mutant | -10/Materials Mutant | -10/Mines Mutant | -10/Exiles Mutant | -9/Mines Scavenger-Mutant | -8/Materials Scavenger-Mutant | -7/Factory Scavenger-Mutant | -7/Garrison Scavenger-Mutant | -7/Factory Scavenger-Mutant | -7/Garrison Scavenger-Mutant | -6/Factory Scavenger-Skirmisher | -6/Lower Caves Scavenger-Skirmisher | -6/Lower Caves Scavenger-Mutant | -6/Zion Scavenger-Mutant | -6/Deep Caves Resources | -11 -10 -10 -10 -9 -8 -7 -7 -7 -7 -6 -6 -6 -6 -6 ----------- Run | Jun Mat Min Exi Min Mat Fac Gar Fac Gar Fac Low Low Zio Dee Matter Collected 2379 | 200 . 43 16 204 353 . 788 157 245 173 30 70 10 90 Remotely . | . . . . . . . . . . . . . . . Salvage Created 5126 | . . 212 . 223 1032 . 936 197 1207 489 141 . . 689 Parts 229 | . . 19 . 10 60 . 48 9 52 10 . . . 21 Haulers Intercepted 5 | . . . . . 3 . . . . 2 . . . . Recyclers Shooed 5 | . . . . 1 1 . . . . 3 . . . . Parts Field Recycled . | . . . . . . . . . . . . . . . Retrieved Matter . | . . . . . . . . . . . . . . . Parts Self-Destructed . | . . . . . . . . . . . . . . . Prevented . | . . . . . . . . . . . . . . . Kills | -11 -10 -10 -10 -9 -8 -7 -7 -7 -7 -6 -6 -6 -6 -6 ------- Run | Jun Mat Min Exi Min Mat Fac Gar Fac Gar Fac Low Low Zio Dee Combat Hostiles Destroyed 119 | . . 7 . 7 29 . 26 2 24 1 . . . 23 Guns 73 | . . 5 . 7 5 . 10 2 24 . . . . 20 Cannons 19 | . . . . . 13 . 5 . . 1 . . . . AOE 21 | . . 2 . . 8 . 11 . . . . . . . Classes Destroyed 18 | . . 2 . 4 6 . 3 . 1 . . . . 2 Worker 2 | . . . . . 1 . . . . 1 . . . . Builder 1 | . . . . . 1 . . . . . . . . . Hauler 5 | . . . . . 3 . . . . 2 . . . . Recycler 4 | . . . . 1 . . . 1 . 2 . . . . Operator 1 | . . . . . 1 . . . . . . . . . Swarmer 28 | . . 3 . . 14 . 7 . 4 . . . . . Cutter 5 | . . . . . . . . . 5 . . . . . Grunt 35 | . . 4 . . 9 . 13 . 9 . . . . . Brawler 3 | . . . . . . . 2 . 1 . . . . . Duelist 2 | . . . . . . . 1 . 1 . . . . . Sentry 11 | . . . . 2 4 . 2 2 1 . . . . . Demolisher 2 | . . . . 2 . . . . . . . . . . Hunter 3 | . . . . . 1 . . . 1 1 . . . . Programmer 3 | . . . . . . . 1 . 2 . . . . . Heavy 1 | . . . . . 1 . . . . . . . . . Z-Light 2 | . . . . . . . . . . . . . . 2 Packrat 2 | . . . . . . . . . . . 2 . . . Assembled 21 | . . . . 3 . . . . . . . . . 18 Golem 2 | . . . . . . . . . . . . . . 2 Best Kill Streak 17 | . . 5 . 3 8 . 9 1 17 2 . . . 16 Combat Bots Only 17 | . . 5 . 2 6 . 9 1 17 1 . . . 16 Max Kills in Single Turn 4 | . . 2 . 1 4 . 4 1 2 1 1 . . 3 Gunslinging 1 | . . . . . . . . . 1 . . . . . Exploded 4 | . . 2 . . 3 . 4 . . . . . . . Melee . | . . . . . . . . . . . . . . . Uniques/NPCs Destroyed 1 | . . . . . . . . . . . . . . 1 Z-Imprinter (-6/Deep Caves) Combat | -11 -10 -10 -10 -9 -8 -7 -7 -7 -7 -6 -6 -6 -6 -6 -------- Run | Jun Mat Min Exi Min Mat Fac Gar Fac Gar Fac Low Low Zio Dee Damage Taken 11071 | . . 148 . 726 1912 . 2056 302 1852 470 . 253 . 3352 Core 1847 | . . 26 . 210 183 . 194 15 357 45 . 205 . 612 Absorbed by Shields 528 | . . . . . 159 . . . . . . . . 369 Core Remaining (%) 47 | 100 . . . 5 66 . . . 19 . . . . . Volleys Fired 362 | . . 13 . 14 84 . 98 6 59 24 4 10 1 49 Largest 2 | . . 2 . 2 2 . 2 2 2 2 2 2 1 2 Hottest 185 | . . 60 . 43 136 . 136 140 150 185 170 170 65 145 Shots Fired 697 | . . 26 . 32 154 . 178 12 125 36 8 20 1 105 Gun 439 | . . 26 . 28 46 . 105 12 105 12 4 10 1 90 Cannon 234 | . . . . . 100 . 62 . 19 24 4 10 . 15 Launcher 24 | . . . . 4 8 . 11 . 1 . . . . . Special . | . . . . . . . . . . . . . . . Kinetic 216 | . . 13 . 28 34 . 105 . 14 . . . . 22 Thermal 393 | . . . . . 112 . 62 12 74 36 8 20 1 68 Explosive 24 | . . . . 4 8 . 11 . 1 . . . . . Electromagnetic 64 | . . 13 . . . . . . 36 . . . . 15 Robot Hit Streak 18 | . . 5 . 7 12 . 16 9 14 18 3 . . 15 Robot Miss Streak 9 | . . 4 . 2 9 . 9 1 4 2 1 . . 7 Penetration Max . | . . . . . . . . . . . . . . . Secondary Targets 4 | . . . . . 1 . . . 3 . . . . . Max Gunslinging Chain 1 | . . . . . 1 . . . 1 . . . . . Autonomous 44 | . . . . 8 . . . . 14 . . . . 22 Shots Hit Robots 429 | . . 13 . 22 97 . 115 10 88 26 6 . . 52 Core Hits 236 | . . 9 . 17 51 . 63 5 50 8 2 . . 31 Critical Kills 3 | . . . . . . . 1 . . 2 . . . . Critical Parts Destroyed . | . . . . . . . . . . . . . . . Critical Strikes 10 | . . . . . 1 . 1 1 4 2 . . . 1 Burn 6 | . . . . . 1 . . 1 4 . . . . . Meltdown 2 | . . . . . . . . . . 2 . . . . Destroy 2 | . . . . . . . 1 . . . . . . 1 Melee Attacks 9 | . . . . . . . . . . . . . 9 . Impact 9 | . . . . . . . . . . . . . 9 . Slashing . | . . . . . . . . . . . . . . . Piercing . | . . . . . . . . . . . . . . . Sneak Attacks . | . . . . . . . . . . . . . . . Combat Hostiles . | . . . . . . . . . . . . . . . Follow-up Attacks . | . . . . . . . . . . . . . . . Damage Inflicted 12611 | . . 256 . 471 2784 . 3551 228 2648 869 197 . . 1607 Guns 5866 | . . 164 . 375 438 . 1294 228 1838 144 54 . . 1331 Cannons 3828 | . . . . . 1417 . 925 . 342 725 143 . . 276 Explosions 2888 | . . 92 . 80 916 . 1332 . 468 . . . . . Melee . | . . . . . . . . . . . . . . . Ramming 29 | . . . . 16 13 . . . . . . . . . Kinetic 3220 | . . 76 . 375 299 . 1294 . 483 . . . . 693 Thermal 5956 | . . 92 . . 1556 . 925 228 1451 869 197 . . 638 Explosive 2511 | . . . . 80 916 . 1332 . 183 . . . . . Electromagnetic 895 | . . 88 . . . . . . 531 . . . . 276 Impact . | . . . . . . . . . . . . . . . Slashing . | . . . . . . . . . . . . . . . Piercing . | . . . . . . . . . . . . . . . Highest Corruption 60 | . . . . . . . 3 3 60 . . . . . Average Corruption 20 | . . . . . . . 2 3 33 . . . . . Corruption Purged . | . . . . . . . . . . . . . . . Corruption Blocked . | . . . . . . . . . . . . . . . Effects 71 | . . . . . . . 10 5 56 . . . . . Message Errors 14 | . . . . . . . 4 1 9 . . . . . Matter Fused 18 | . . . . . . . 3 . 15 . . . . . Heat Flow Errors 8 | . . . . . . . . 1 7 . . . . . Energy Discharges 15 | . . . . . . . 2 2 11 . . . . . Data Loss (minor) 5 | . . . . . . . 1 . 4 . . . . . Data Loss (major) 4 | . . . . . . . . 1 3 . . . . . Misfires 2 | . . . . . . . . . 2 . . . . . Alerts 4 | . . . . . . . . . 4 . . . . . Weapon Failures 1 | . . . . . . . . . 1 . . . . . Overload Shots . | . . . . . . . . . . . . . . . Overflow Damage 141 | . . . . . 76 . 14 . 2 2 47 . . . Projectiles 123 | . . . . . 58 . 14 . 2 2 47 . . . Explosions 18 | . . . . . 18 . . . . . . . . . Melee . | . . . . . . . . . . . . . . . Knockbacks . | . . . . . . . . . . . . . . . Impact . | . . . . . . . . . . . . . . . Kinetic . | . . . . . . . . . . . . . . . Secondary . | . . . . . . . . . . . . . . . Self-Inflicted Damage 303 | . . . . . 148 . 67 . 88 . . . . . Shots 8 | . . . . . 4 . 2 . 2 . . . . . Rammed 4 | . . . . 1 2 . 1 . . . . . . . Targets Rammed 4 | . . . . 1 2 . 1 . . . . . . . Kicked . | . . . . . . . . . . . . . . . Crushed . | . . . . . . . . . . . . . . . Highest Temperature 342 | . . 45 . 4 326 . 288 178 294 342 . . . 120 Average Temperature 104 | . . 27 . 2 136 . 127 49 91 119 . . . 47 Received Heat Transfer 2527 | . . 51 . . 459 . 606 66 405 . . . . 940 Effects 6 | . . . . . 5 . . . . 1 . . . . Energy Bleed 4 | . . . . . 3 . . . . 1 . . . . Interference 2 | . . . . . 2 . . . . . . . . . Siege Activations . | . . . . . . . . . . . . . . . Robots Corrupted 3 | . . . . . . . . . 1 . . . . 2 Combat Hostiles 2 | . . . . . . . . . . . . . . 2 Parts Fried 1 | . . . . . . . . . 1 . . . . . Impact Corruptions . | . . . . . . . . . . . . . . . Robots Melted 6 | . . . . . 3 . . . . 2 . . . 1 Combat Hostiles 4 | . . . . . 3 . . . . . . . . 1 Parts Melted 22 | . . . . . 6 . 4 1 7 3 . . . 1 Heat Transferred 9485 | . . 100 . . 2923 . 1489 444 2691 962 222 . . 654 Parts Sabotaged . | . . . . . . . . . . . . . . . Parts Stolen . | . . . . . . . . . . . . . . . Parts Stripped . | . . . . . . . . . . . . . . . Power Chain Reactions 5 | . . 1 . . . . . . 4 . . . . . Missiles Intercepted . | . . . . . . . . . . . . . . . Alert | -11 -10 -10 -10 -9 -8 -7 -7 -7 -7 -6 -6 -6 -6 -6 ------- Run | Jun Mat Min Exi Min Mat Fac Gar Fac Gar Fac Low Low Zio Dee Peak Influence 1290 | . . 174 . 51 744 304 1014 627 1290 771 . . . . Initial 676 | . . . . . 19 290 212 532 447 676 . . . . Average 600 | . . 124 . 15 392 293 707 567 1051 717 . . . . Maximum Alert Level 4 | . . . . . 3 1 3 2 4 3 . . . . Low Security (%) 23 | . 100 100 . 100 24 . . . . . . . . . Level 1 14 | . . . . . 27 100 29 . . . . . . . Level 2 17 | . . . . . 37 . 8 100 9 50 . . . . Level 3 29 | . . . . . 10 . 62 . 27 49 . . . . Level 4 14 | . . . . . . . . . 62 . . . . . Level 5 . | . . . . . . . . . . . . . . . High Security . | . . . . . . . . . . . . . . . Max Security . | . . . . . . . . . . . . . . . Squads Dispatched 7 | . . . . . 5 . . . . 2 . . . . Investigation 1 | . . . . . 1 . . . . . . . . . Extermination . | . . . . . . . . . . . . . . . Reinforcement 5 | . . . . . 3 . . . . 2 . . . . Assault 1 | . . . . . 1 . . . . . . . . . Garrison . | . . . . . . . . . . . . . . . Intercept . | . . . . . . . . . . . . . . . Searches Triggered . | . . . . . . . . . . . . . . . Construction Impeded 1 | . . . . . 1 . . . . . . . . . Haulers Reinforced 2 | . . . . . . . . . . 2 . . . . Active Scanning Responses . | . . . . . . . . . . . . . . . Cargo Convoy Interrupts . | . . . . . . . . . . . . . . . Stealth | -11 -10 -10 -10 -9 -8 -7 -7 -7 -7 -6 -6 -6 -6 -6 --------- Run | Jun Mat Min Exi Min Mat Fac Gar Fac Gar Fac Low Low Zio Dee Distress Signals 7 | . . . . 1 4 . 1 . . 1 . . . . Communications Jammed . | . . . . . . . . . . . . . . . Distress Signals . | . . . . . . . . . . . . . . . Times Spotted 172 | . . 5 . 17 39 . 34 2 24 2 . . . 49 Peak Tracking Total 34 | . . 3 . 16 8 . 8 1 7 1 . . . 34 Tactical Retreats 11 | . . . . 4 5 . 1 . . . . . . 1 Traps | -11 -10 -10 -10 -9 -8 -7 -7 -7 -7 -6 -6 -6 -6 -6 ------- Run | Jun Mat Min Exi Min Mat Fac Gar Fac Gar Fac Low Low Zio Dee Traps Triggered 2 | . . . . . 1 . . 1 . . . . . . Indirectly . | . . . . . . . . . . . . . . . Trap Hack Attempts . | . . . . . . . . . . . . . . . Triggered . | . . . . . . . . . . . . . . . Disarmed . | . . . . . . . . . . . . . . . Reprogrammed . | . . . . . . . . . . . . . . . Reused . | . . . . . . . . . . . . . . . Traps Extracted . | . . . . . . . . . . . . . . . Installed . | . . . . . . . . . . . . . . . Triggered . | . . . . . . . . . . . . . . . Machines | -11 -10 -10 -10 -9 -8 -7 -7 -7 -7 -6 -6 -6 -6 -6 ---------- Run | Jun Mat Min Exi Min Mat Fac Gar Fac Gar Fac Low Low Zio Dee Machines Disabled 14 | . . . . . 1 . 2 . 8 1 . . . 2 Max in Single Turn 1 | . . . . . 1 . 1 . 1 1 . . . 1 Garrison Relay 7 | . . . . . . . 2 . 5 . . . . . Machines Repaired . | . . . . . . . . . . . . . . . Machines Sabotaged . | . . . . . . . . . . . . . . . Overloaded Fab Kills . | . . . . . . . . . . . . . . . Hacking | -11 -10 -10 -10 -9 -8 -7 -7 -7 -7 -6 -6 -6 -6 -6 --------- Run | Jun Mat Min Exi Min Mat Fac Gar Fac Gar Fac Low Low Zio Dee Machines Accessed 10 | . . . 2 . 1 1 1 1 2 1 . . 1 . Terminals 4 | . . . . . 1 . 1 . 2 . . . . . Fabricators 1 | . . . . . . . . . . 1 . . . . Repair Stations . | . . . . . . . . . . . . . . . Recycling Units . | . . . . . . . . . . . . . . . Scanalyzers . | . . . . . . . . . . . . . . . Garrison Access 2 | . . . . . . 1 . 1 . . . . . . Total Hacks 24 | . . . 6 . 1 2 1 1 5 3 . . 5 . Successful 17 | . . . 6 . . 1 . 1 2 2 . . 5 . Failed 7 | . . . . . 1 1 1 . 3 1 . . . . Catastrophic 1 | . . . . . 1 . . . . . . . . . Database Lockouts . | . . . . . . . . . . . . . . . Manual 8 | . . . 1 . 1 . . . 3 2 . . 1 . Terminals 7 | . . . . . 1 . 1 . 5 . . . . . Fabricators 3 | . . . . . . . . . . 3 . . . . Repair Stations . | . . . . . . . . . . . . . . . Recycling Units . | . . . . . . . . . . . . . . . Scanalyzers . | . . . . . . . . . . . . . . . Garrison Access 3 | . . . . . . 2 . 1 . . . . . . Terminal Hacks 12 | . . . 6 . . . . . 1 . . . 5 . Record 5 | . . . 5 . . . . . . . . . . . Part Schematic 5 | . . . . . . . . . . . . . 5 . Garrison Registry 1 | . . . . . . . . . 1 . . . . . EX-Prototype ID Bank 1 | . . . 1 . . . . . . . . . . . Fabricator Hacks 1 | . . . . . . . . . . 1 . . . . Network Status 1 | . . . . . . . . . . 1 . . . . Repair Station Hacks . | . . . . . . . . . . . . . . . Recycling Unit Hacks . | . . . . . . . . . . . . . . . Scanalyzer . | . . . . . . . . . . . . . . . Garrison Access Hacks 2 | . . . . . . 1 . 1 . . . . . . Unlock Access 2 | . . . . . . 1 . 1 . . . . . . Unauthorized Hacks 2 | . . . . . . . . . 1 1 . . . . Terminals 1 | . . . . . . . . . 1 . . . . . Botnet 1 | . . . . . . . . . 1 . . . . . Fabricators 1 | . . . . . . . . . . 1 . . . . Liberate 1 | . . . . . . . . . . 1 . . . . Repair Stations . | . . . . . . . . . . . . . . . Recycling Units . | . . . . . . . . . . . . . . . Scanalyzers . | . . . . . . . . . . . . . . . Garrison Access . | . . . . . . . . . . . . . . . Data Cores Recovered . | . . . . . . . . . . . . . . . Used . | . . . . . . . . . . . . . . . Hacking Detections 6 | . . . . . 1 1 1 . 2 1 . . . . Full Trace Events . | . . . . . . . . . . . . . . . Feedback Events . | . . . . . . . . . . . . . . . Feedback Blocked . | . . . . . . . . . . . . . . . Robot Schematics Acquired 3 | . . . . . . . . . . . . . 3 . Robots Built . | . . . . . . . . . . . . . . . Authchips . | . . . . . . . . . . . . . . . Time . | . . . . . . . . . . . . . . . Total Robot Build Rating . | . . . . . . . . . . . . . . . Part Schematics Acquired 20 | . . . . . . . . . . . . . 20 . Parts Built . | . . . . . . . . . . . . . . . Authchips . | . . . . . . . . . . . . . . . Time . | . . . . . . . . . . . . . . . Total Part Build Rating . | . . . . . . . . . . . . . . . Parts Repaired . | . . . . . . . . . . . . . . . Time . | . . . . . . . . . . . . . . . Parts Recycled . | . . . . . . . . . . . . . . . Recycled Matter . | . . . . . . . . . . . . . . . Retrieved Matter . | . . . . . . . . . . . . . . . Retrieved Components . | . . . . . . . . . . . . . . . Parts Scanalyzed . | . . . . . . . . . . . . . . . Part Schematics Acquired . | . . . . . . . . . . . . . . . Parts Damaged . | . . . . . . . . . . . . . . . Bothacking | -11 -10 -10 -10 -9 -8 -7 -7 -7 -7 -6 -6 -6 -6 -6 ------------ Run | Jun Mat Min Exi Min Mat Fac Gar Fac Gar Fac Low Low Zio Dee Used RIF Installer . | . . . . . . . . . . . . . . . Robots Hacked . | . . . . . . . . . . . . . . . Non-combat . | . . . . . . . . . . . . . . . Combat . | . . . . . . . . . . . . . . . Robot Hacks Applied . | . . . . . . . . . . . . . . . Relay Couplers Released 34 | . . . . . . . 11 . 23 . . . . . Machine Destruction 31 | . . . . . . . 8 . 23 . . . . . Programmers 3 | . . . . . . . 3 . . . . . . . Fabnet Peak Effective % . | . . . . . . . . . . . . . . . Robots Rewired 2 | . . . 2 . . . . . . . . . . . Allies Hacked . | . . . . . . . . . . . . . . . Hacks Repelled . | . . . . . . . . . . . . . . . Allies | -11 -10 -10 -10 -9 -8 -7 -7 -7 -7 -6 -6 -6 -6 -6 -------- Run | Jun Mat Min Exi Min Mat Fac Gar Fac Gar Fac Low Low Zio Dee Total Allies 4 | . . . 2 . . . . . . . . . 2 . Largest Group 2 | . . . 2 2 . . . . . . . . 2 2 Highest-Rated Group 192 | . . . 29 29 . . . . . . . . 192 192 Highest-Rated Ally 96 | . . . 21 21 . . . . . . . . 96 96 Total Orders . | . . . . . . . . . . . . . . . Ally Attacks 21 | . . . . . . . . . . . . . . 21 Total Damage 374 | . . . . . . . . . . . . . . 374 Kills . | . . . . . . . . . . . . . . . Allies Corrupted . | . . . . . . . . . . . . . . . Allies Melted . | . . . . . . . . . . . . . . . Intel | -11 -10 -10 -10 -9 -8 -7 -7 -7 -7 -6 -6 -6 -6 -6 ------- Run | Jun Mat Min Exi Min Mat Fac Gar Fac Gar Fac Low Low Zio Dee Robot Analysis Total . | . . . . . . . . . . . . . . . Derelict Logs Recovered 4 | . . . . 1 . . . . . . 1 1 1 . Drone Launches . | . . . . . . . . . . . . . . . Drone Recoveries . | . . . . . . . . . . . . . . . Exploration | -11 -10 -10 -10 -9 -8 -7 -7 -7 -7 -6 -6 -6 -6 -6 ------------- Run | Jun Mat Min Exi Min Mat Fac Gar Fac Gar Fac Low Low Zio Dee Turns Passed 9306 | . 24 185 551 765 845 39 1584 215 1212 263 894 761 1253 715 Spaces Moved 4763 | 1 20 115 312 420 295 23 743 99 337 128 482 523 888 377 Core . | . . . . . . . . . . . . . . . Treads 1558 | . . . . 308 295 23 743 99 90 . . . . . Legs 791 | 1 20 115 312 112 . . . . 35 . . . . 196 Wheels 2414 | . . . . . . . . . 212 128 482 523 888 181 Hover . | . . . . . . . . . . . . . . . Flight . | . . . . . . . . . . . . . . . Fastest Speed 116 | 120 120 120 120 160 160 170 165 161 120 135 135 120 135 116 Average Speed 147 | 120 120 120 171 168 165 170 167 164 137 135 135 134 135 127 Slowest Speed 330 | 120 120 120 190 240 330 170 170 165 180 135 135 135 135 190 Overloaded Moves . | . . . . . . . . . . . . . . . Propulsion Burnouts . | . . . . . . . . . . . . . . . Robots Hopped 1 | . . . . . . . . . . . . . 1 . Cave-ins Triggered 1 | . . . . . . . . . . . . 1 . . Exploration Rate (%) 41 | 2 7 33 70 64 33 1 71 3 62 5 66 50 85 64 Regions Visited 14 Branch Regions 7 Pre-discovered Areas 5 | . . . 1 . . . . . . . 2 . 2 . Known Exits Taken 6 | . . . . . 1 1 . 1 . 1 1 1 . . Unknown Exits Taken 6 | 1 1 1 1 1 . . . . . . . . 1 . Scrap Searched 12 | . . . . 2 . . . . . . 3 5 2 . Spaces Dug 20 | . . . . . . . 4 . . . . 14 2 . Terrain Destroyed 129 | . . 4 . 27 39 . 30 . 5 3 . 14 2 5 Melee 2 | . . . . . . . . . . . . . 2 . Projectile 32 | . . . . 7 . . 3 . . 3 . 14 . 5 AOE 95 | . . 4 . 20 39 . 27 . 5 . . . . . Terrain Rammed . | . . . . . . . . . . . . . . . Walls Destroyed . | . . . . . . . . . . . . . . . Machines Disabled . | . . . . . . . . . . . . . . . Actions | -11 -10 -10 -10 -9 -8 -7 -7 -7 -7 -6 -6 -6 -6 -6 --------- Run | Jun Mat Min Exi Min Mat Fac Gar Fac Gar Fac Low Low Zio Dee Total 6397 | . 21 136 327 456 496 23 913 140 971 183 718 562 922 529 Wait 972 | . . 3 3 . 49 . 26 13 536 14 225 6 17 80 Move 4745 | . 19 114 311 419 294 22 740 99 336 127 481 521 885 377 Hop 1 | . . . . . . . . . . . . . 1 . Pick Up 71 | . . 4 3 6 18 . 10 2 10 3 2 6 3 4 Fast Attach 47 | . . . 1 4 10 . 6 6 5 4 . 4 . 7 Attach 45 | . . . . 4 9 1 6 1 10 3 1 3 . 7 Detach 11 | . . . . 2 . . . . 3 4 . 1 . 1 Swap 41 | . . 1 1 2 11 . 11 3 6 1 2 . 3 . Drop 78 | . 2 1 1 4 19 . 14 10 6 3 3 8 3 4 Fire 362 | . . 13 . 14 84 . 98 6 59 24 4 10 1 49 Melee 9 | . . . . . . . . . . . . . 9 . Ram . | . . . . . . . . . . . . . . . Kick . | . . . . . . . . . . . . . . . Crush 4 | . . . . 1 2 . 1 . . . . . . . Escape Stasis 1 | . . . . . . . . . . . . 1 . . Rewire 10 | . . . 7 . . . 1 . . . . 2 . . Trap . | . . . . . . . . . . . . . . . Miscellaneous . | . . . . . . . . . . . . . . . Route ------- -11/Junkyard -10/Materials -10/Mines -10/Exiles -9/Mines -8/Materials -7/Factory -7/Garrison (discovered 3 exits: *Fac x3) -7/Factory -7/Garrison (discovered 3 exits: *Fac x3) -6/Factory (discovered 2 exits: *Fac / *Low) -6/Lower Caves -6/Lower Caves -6/Zion (discovered 2 exits: [*Dee] / [*Pro]) -6/Deep Caves History --------- Turn | Location | Event 1 | -11/Junkyard | Discovered new exit (range 0) 1 | -11/Junkyard | Entered Materials 7 | -10/Materials | Discovered new exit (range 16) 25 | -10/Materials | Entered Mines 170 | -10/Mines | Received a Rocket Launcher from a helpful Derelict 204 | -10/Mines | Deemed a non-threat by the Exiles lab entrance 205 | -10/Mines | Discovered new exit (range 5) 210 | -10/Mines | Entered Exiles 210 | -10/Exiles | Found Exiles lab destroyed 333 | -10/Exiles | Build established: Mutant 404 | -10/Exiles | Learned location of Zion (-6) 507 | -10/Exiles | Opened EX-Vault 518 | -10/Exiles | Found AWS/Gauss 732 | -10/Exiles | Discovered new exit (range 14) 761 | -10/Exiles | Entered Mines 761 | -9/Mines | Accompanied by 2 allies 762 | -9/Mines | Assembled infested the area 767 | -9/Mines | Assisted by a Guerilla fighting off Assembled 1007 | -9/Mines | Core integrity fell below 50% 1011 | -9/Mines | Core integrity fell below 20% 1045 | -9/Mines | Lost 4 parts (1p1n2w) 1443 | -9/Mines | Learned location of 1 exit from Materials 1448 | -9/Mines | Discovered new exit (range 9) 1483 | -9/Mines | Joined a pair of Derelicts in attacking an 0b10 outpost 1526 | -9/Mines | Entered Materials 1526 | -8/Materials | Evolved 4 slots: Propulsion x1, Utility x3 1527 | -8/Materials | Identified exit to Factory 1998 | -8/Materials | Lost 3 parts (1n2u) 2164 | -8/Materials | Lost 4 parts (3n1u) 2326 | -8/Materials | First assault squad dispatched 2371 | -8/Materials | Entered Factory 2371 | -7/Factory | Evolved 2 slots: Propulsion x1, Utility x1 2400 | -7/Factory | Identified exit to Garrison 2410 | -7/Factory | Entered Garrison 2487 | -7/Garrison | Build established: Scavenger-Mutant 2498 | -7/Garrison | Triggered checkpoint 2600 | -7/Garrison | Triggered checkpoint 2663 | -7/Garrison | Garrison Relay disabled 2780 | -7/Garrison | Discovered new exit (range 3) 2856 | -7/Garrison | Triggered checkpoint 2930 | -7/Garrison | Destroyed 9 combat bots 2990 | -7/Garrison | Triggered checkpoint 3011 | -7/Garrison | Garrison Relay disabled 3110 | -7/Garrison | Triggered checkpoint 3574 | -7/Garrison | Discovered new exit (range 13) 3621 | -7/Garrison | Attempted to access garrison exit controls, blocked by remote lockdown 3766 | -7/Garrison | Attempted to access garrison exit controls, blocked by remote lockdown 3979 | -7/Garrison | Discovered new exit (range 10) 3994 | -7/Garrison | Entered Factory 4209 | -7/Factory | Identified exit to Garrison 4209 | -7/Factory | Entered Garrison 4232 | -7/Garrison | Discovered new exit (range 39) 4232 | -7/Garrison | Discovered new exit (range 57) 4232 | -7/Garrison | Discovered new exit (range 70) 4274 | -7/Garrison | Garrison Relay disabled 4292 | -7/Garrison | Garrison Relay disabled 4300 | -7/Garrison | Garrison Relay disabled 4303 | -7/Garrison | Garrison Relay disabled 4318 | -7/Garrison | Triggered checkpoint 4407 | -7/Garrison | System corruption reached 10% 4437 | -7/Garrison | Core integrity fell below 50% 4517 | -7/Garrison | Lost 8 parts (3n2u3w) 4518 | -7/Garrison | Destroyed 17 combat bots 4518 | -7/Garrison | Core integrity fell below 20% 4526 | -7/Garrison | Triggered checkpoint 4606 | -7/Garrison | System corruption reached 30% 4626 | -7/Garrison | Triggered checkpoint 4653 | -7/Garrison | H-XX Assembler disabled 4687 | -7/Garrison | Found Prototype Device 4798 | -7/Garrison | Found Quantum Capacitor 4838 | -7/Garrison | Garrison Relay disabled 5421 | -7/Garrison | Entered Factory 5421 | -6/Factory | Evolved 2 slots: Power x1, Utility x1 5423 | -6/Factory | Identified Active Sensor Suite 5451 | -6/Factory | Discovered new exit (range 9) 5455 | -6/Factory | Discovered new exit (range 15) 5462 | -6/Factory | Identified exit to Factory 5477 | -6/Factory | Identified exit to Lower Caves 5684 | -6/Factory | Entered Lower Caves 5707 | -6/Lower Caves | Met a Warlord Commander 5708 | -6/Lower Caves | Learned location of Warlord (-5) 5717 | -6/Lower Caves | Found Encrypted Comm Array 5870 | -6/Lower Caves | Build established: Scavenger-Skirmisher 5940 | -6/Lower Caves | Encountered a Warlord checkpoint 6574 | -6/Lower Caves | Discovered new exit (range 4) 6576 | -6/Lower Caves | Identified exit to Lower Caves 6578 | -6/Lower Caves | Entered another Lower Caves area 6726 | -6/Lower Caves | Learned Factory trap positions 6787 | -6/Lower Caves | Crushed by falling debris 6815 | -6/Lower Caves | Discovered new exit (range 5) 6819 | -6/Lower Caves | Identified exit to Zion 7339 | -6/Lower Caves | Entered Zion 7412 | -6/Zion | Discovered new exit (range 10) 7536 | -6/Zion | Build established: Scavenger-Mutant 7848 | -6/Zion | Found CR-A16's Pointy Stick 8006 | -6/Zion | Given A8's code to call for help 8234 | -6/Zion | Learned location of Quarantine (-3) 8381 | -6/Zion | Given the Hacking Drone Bay 8384 | -6/Zion | Found Prototype Device 8569 | -6/Zion | Discovered new exit (range 5) 8570 | -6/Zion | Saw the warning signs outside the Deep Caves entrance 8573 | -6/Zion | Enhanced Grunt warped into view, answering call for help 8585 | -6/Zion | Enhanced Grunt warped into view, answering call for help 8592 | -6/Zion | Entered Deep Caves 8592 | -6/Deep Caves | Accompanied by 2 allies 8844 | -6/Deep Caves | Attacked by Z-Imprinter 8903 | -6/Deep Caves | Destroyed Z-Imprinter 8933 | -6/Deep Caves | Lost 8 parts (1p4n3u) 9066 | -6/Deep Caves | Z-Facility disabled 9229 | -6/Deep Caves | Spotted as-46193 9237 | -6/Deep Caves | Core integrity fell below 50% 9245 | -6/Deep Caves | Destroyed as-46193 9284 | -6/Deep Caves | Triggered Deep Caves wall 9285 | -6/Deep Caves | Exposed GOLEM chamber 9288 | -6/Deep Caves | Spotted AS-43908 9290 | -6/Deep Caves | Spotted AS-52817 9304 | -6/Deep Caves | Core integrity fell below 20% 9307 | -6/Deep Caves | Destroyed by as-61170 with Assembled Blade Last Messages --------------- 09297_ as-69666 GOLEM Unit beginning Prototype Leg integration. 09297_ as-46862 destroyed. 09298_ as-78923 released from Mobile Assembly Unit. 09300_ GOLEM Unit springs to life. 09301_ as-24029 GOLEM Unit beginning Prototype Leg integration. 09301_ Slug penetrates as-60696. 09301_ as-60696 destroyed. 09301_ as-42568 destroyed. 09301_ Lyr. Medium Armor Plating destroyed. 09301_ Zio. Light DM Reactor destroyed. 09304_ GOLEM Unit springs to life. 09305_ as-04203 GOLEM Unit beginning Prototype Leg integration. 09305_ as-76344 destroyed. 09305_ AWS/Gauss destroyed. 09305_ as-84677 destroyed. 09306_ as-58377 released from Mobile Assembly Unit. 09306_ Cold Fusion Reactor destroyed. 09306_ as-80675 suffers critical hit (Destroy). 09306_ as-80675 destroyed. 09306_ Zio. Biocell destroyed. Map ----- +----------------------------------------------------+ | ????????????????????????????????????? | | ????????????????????????????????????? | | ????????????????????????????????????? | | ????????????????????????????????????? | | ????????????????????????????????????? | | ????????????????????????????????????? | | ????????????????????????????????????? | | ????????????????????????????????????? | | ????????????????????????????????????? | | ????????????????????????????????????? | | ?????????? ??????????????????? | | ????????? ! ????????????????? | | ????????? ?????????????? | | ?????????" ????????????? | | ?????????" #????????????? | | ?????????" ?????????????? | | ?????????" #?????????????? | | ????????"" #???#?????????? | | ??????### ### ###???????? | | ??""""" [ # ????????? | | ??" AAa [ s l ##????????? | | ??" ###?????## | | ??" a a [ #????## | | ??" aaa [ s #??????# | | ??" aa a [ ##?????# | | ??" @a = #??##??# | | ??" aa a [ #?## ???# | | ???"""" a aa [ #?# ##?? | | ??????### a aa #?# ### | | ????????"" a a[ = #?# | | ????????"! * #??# | | ??????#""G a* *= #??## | | ??????# !G g = = ##??# | | ??????#""" #?## | | ????????# * ### | | ????????" * / ## | | ????????" M b M ### ## | | ????????" g / ### | | ????????""" #?# | | ????????" ### | | ????????"" "##[ | | ????????" #?###### | | ????????"" ##??????? | | ????????" # # #???????? | | ????????" #### ## ## ##???????? | | ????????""" ###??# ## ####????????? | | ?????????" ????#### ????????????? | | ?????????######????????#????????????? | | | | | +----------------------------------------------------+ Best States ------------- Heat Dissipation 65 Coolant Potential 65 Energy Generation 45 Energy Capacity 1400 Matter Stores 300 Matter Capacity 300 Sight Range 16 Robot Scan Range 20 Terrain Scan Density 10 Power Amplification 20 Additional Mass Support 6 Armor Coverage 600 Evasion (%) 55 Targeting Accuracy 8 Target Analysis 6 Recoil Reduction 4 Offensive Hacking 10 Item Schematics ----------------- Beamcaster | -6/Zion | Free Riot Gun | -6/Zion | Free Battle Rifle | -6/Zion | Free Slug Cannon | -6/Zion | Free Enh. Flamer | -6/Zion | Free 0b10 Decoder Chip [Skirmisher] | -6/Zion | Archive Adv. Hacking Suite | -6/Zion | Archive Energy Well | -6/Zion | Archive Hyp. Mass Driver | -6/Zion | Archive Enh. Optical Array | -6/Zion | Archive Adv. System Shield | -6/Zion | Archive Imp. Force Field | -6/Zion | Archive Phase Shifter | -6/Zion | Archive Lance | -6/Zion | Archive Lrn. Missile Launcher | -6/Zion | Archive Antigrav System | -6/Zion | Archive Hvy. Phase Cannon | -6/Zion | Archive EM Disruption Field | -6/Zion | Archive Flexi-carbon Leg | -6/Zion | Archive Imp. Shock Absorption System | -6/Zion | Archive Robot Schematics ------------------ K-01 Serf | -6/Zion | Archive T-07 Excavator | -6/Zion | Archive G-73 Enforcer | -6/Zion | Archive Fabricated ------------ Nothing Alien Tech Used ----------------- None Achievements -------------- None Challenges ------------ None Game ------ Seed PrecisionDiametricAnalyzer Manual? 0 Play Time 01:02:51 Cumulative 446.8 hours Start 2023.01.26 @ 21:19:31 End 2023.01.28 @ 19:54:05 Sessions 5 Manual Loads 0 Difficulty Rogue Special Mode None Game No. 443 Rogue 443 Adventurer 0 Explorer 0 Win Type - Total 32 Types 18/3/4/1/2/1/3/0/0 Lore% 92 Gallery% 93 Achievement% 82 Wizard Run 0 Options --------- ASCII 0 Keyboard 0 Movement Arrows Keybinds 0 Fullscreen 2 Font 24/Smallcaps Map View 76x50 Tactical HUD 1 Map Filters NONE Filters NONE Steam 1 RUN: e6fcaaa9-ce58-4087-bc39-1ac9c3df7933